Cogmind - Beta 15 @@@ ROGUE MODE // 2025.09.03 @ 16:39:24 Player: winnking222 Result: Destroyed by Q381-c with Plasma Lance Performance ------------- Evolutions (7) 3500 Regions Visited (22) 4400 Robots Destroyed (249) 1245 Value Destroyed (13561) 13561 Prototype IDs (59) 1180 Alien Tech Used (12) 2400 Bonus (12491) 12491 TOTAL SCORE: 38777 Bonus ------- High Alert Combat Kills 2392 Follower Combat Kills 3117 Entered Garrisons 200 Network Hubs Disabled 400 Registered with UFD 300 Met Optimus in HQ 500 Met Imprinter 300 Destroyed Z-Imprinter 1000 Triggered Deep Caves Wall 500 Exposed GOLEM Chamber 500 Met R17 at Cetus 500 Used Core Reset Matrix 3000 Met R17 at Research 2000 Scanned by Researcher 500 Friendly Fire -2718 Cogmind --------- Core Integrity 0/1300 Matter 212/425 Energy 1350/1350 System Corruption 0% Temperature Cool (0) Movement Walking (190) Ox1 Location -3/Section 7 Parts ------- > --- POWER (2) -------- Reinforced Quantum Reactor (fused) > --- PROPULSION (4) --- Myomer Leg > --- UTILITY (12) ----- Assembled Nanovents Assembled Biocell Array > --- WEAPON (3) ------- CR-A16's Pointy Stick > --- INVENTORY (9) ---- Quantum Reactor Light Quantum Reactor Centrium Heavy Treads Matter Compressor (250) Heavy Regenerative Plating Improved Remote Datajack Peak State ------------ > --- POWER ------------ Light Quantum Reactor Matter Drive > --- PROPULSION ------- Centrium Heavy Treads Centrium Heavy Treads > --- UTILITY ---------- Assembled Nanovents Huge Storage Unit Assembled Biocell Array Assembled Suspension Frame Enhanced Optical Array Long-range Terrain Scanner Surveybot 24 Chip Assembled Combat Suite Advanced Cloaking Device Assembled Alloy Armor Phase Armor > --- WEAPON ----------- Assembled Focal Cannon Assembled Focal Cannon Assembled Focal Cannon > --- INVENTORY -------- Quantum Reactor Light Quantum Reactor Reinforced Quantum Reactor Centrium Heavy Treads Advanced Heavy Siege Treads Centrium Leg Centrium Leg Centrium Leg Heavy Shield Leg High-capacity Storage Unit Matter Compressor GOLEM Unit Amulet of Y3-NDR Enhanced Hardcell Cannon Enhanced Hardcell Cannon Gamma Bomb Array Improved Remote Datajack Improved Plasma Cutter Core Stripper CR-A16's Pointy Stick [Rating: 208] Favorites ----------- Power Subdweller Power Source Engine Subdweller Power Source Power Core Fission Core Reactor Quantum Reactor Propulsion Assembled Alloy Leg Treads Spiked Treads Leg Assembled Alloy Leg Wheel Wheel Hover Unit Antigrav Array Flight Unit Flightbrick Utility Assembled Nanovents Device Assembled Nanovents Storage Assembled Biocell Array Processor Enhanced Optical Array Hackware Hacking Suite Protection Assembled Alloy Armor Artifact Phase Armor Weapon Assembled Focal Cannon Energy Gun Subdweller Laser Energy Cannon Assembled Focal Cannon Ballistic Gun Light Assault Rifle Ballistic Cannon Battle Cannon Launcher Guided Missile Launcher Special Weapon Plasma Cutter Impact Weapon Core Stripper Slashing Weapon Dual-blade Saw Piercing Weapon CR-A16's Pointy Stick Special Melee Weapon Advanced Datajack Build | -11 -10 -10 -10 -9 -6 -6 -6 -6 -6 -6 -6 -5 -5 -5 -5 -5 -5 -4 -4 -3 -3 -3 ------- Run | Yrd Mat Min Sub Scr Fac Was Fac Low Low Zio Dee Pro Fac Ext Cet Arc Hub Fac Gar Res Qua Sec Slots Evolved 14 | . . . . . 8 . . . . . . . 2 . . . . 2 . 2 . . Power 1 | . . . . . 1 . . . . . . . . . . . . . . . . . Propulsion 2 | . . . . . 2 . . . . . . . . . . . . . . . . . Utility 10 | . . . . . 5 . . . . . . . 2 . . . . 1 . 2 . . Weapon 1 | . . . . . . . . . . . . . . . . . . 1 . . . . Parts Attached 150 | 7 6 2 20 8 2 3 6 1 1 4 10 3 3 4 6 7 2 10 17 2 19 7 Power 27 | 1 1 . 5 1 . . 1 . . . 2 . 1 . 2 1 1 3 5 1 2 . Engine 9 | 1 1 . 5 . . . 1 . . . 1 . . . . . . . . . . . Core 4 | . . . . 1 . . . . . . . . 1 . . . . 1 1 . . . Reactor 14 | . . . . . . . . . . . 1 . . . 2 1 1 2 4 1 2 . Propulsion 41 | 2 . . 5 1 . 1 . . . . . 3 1 4 2 1 . 3 10 . 5 3 Treads 11 | 2 . . 5 . . . . . . . . . . . . 1 . . 1 . 2 . Leg 24 | . . . . . . . . . . . . 1 1 4 1 . . 3 8 . 3 3 Wheel 1 | . . . . 1 . . . . . . . . . . . . . . . . . . Hover 2 | . . . . . . . . . . . . . . . 1 . . . 1 . . . Flight 3 | . . . . . . 1 . . . . . 2 . . . . . . . . . . Utility 48 | 2 2 2 2 4 2 2 4 . 1 1 8 . 1 . 2 2 1 . 2 1 7 2 Device 23 | 1 . 1 2 2 . . 1 . 1 1 3 . . . 1 1 1 . 2 1 5 . Storage 7 | 1 2 1 . . . . . . . . 1 . 1 . 1 . . . . . . . Processor 4 | . . . . . 2 . 1 . . . 1 . . . . . . . . . . . Hackware 4 | . . . . . . 1 2 . . . 1 . . . . . . . . . . . Protection 8 | . . . . 2 . 1 . . . . 2 . . . . 1 . . . . 1 1 Artifact 2 | . . . . . . . . . . . . . . . . . . . . . 1 1 Weapon 34 | 2 3 . 8 2 . . 1 1 . 3 . . . . . 3 . 4 . . 5 2 Energy Gun 2 | . . . 2 . . . . . . . . . . . . . . . . . . . Energy Cannon 4 | . . . 4 . . . . . . . . . . . . . . . . . . . Ballistic Gun 12 | 2 2 . 1 2 . . 1 . . . . . . . . 2 . 2 . . . . Ballistic Cannon 3 | . . . 1 . . . . . . . . . . . . . . . . . 2 . Launcher 6 | . 1 . . . . . . . . 2 . . . . . . . . . . 2 1 Special Weapon 3 | . . . . . . . . 1 . . . . . . . . . 2 . . . . Impact Weapon 1 | . . . . . . . . . . . . . . . . . . . . . 1 . Slashing Weapon 1 | . . . . . . . . . . . . . . . . . . . . . . 1 Piercing Weapon 1 | . . . . . . . . . . 1 . . . . . . . . . . . . Special Melee Weapon 1 | . . . . . . . . . . . . . . . . 1 . . . . . . Unidentified Prototypes 33 | . . . 1 1 . . 2 . 1 3 5 . 1 . 1 3 . . . 1 8 6 Corrupted Parts 7 | . . . . . . . . . . . . . . . . 3 1 . . . 1 2 System Corruption 45 | . . . . . . . . . . . . . . . . 19 4 . . . 2 20 Parts Lost 70 | . . 1 2 . . . . . . . 5 . . 1 . . 1 9 4 2 22 23 Power 9 | . . . 1 . . . . . . . 2 . . . . . 1 1 1 . 1 2 Propulsion 12 | . . . . . . . . . . . . . . 1 . . . 2 1 . 3 5 Utility 31 | . . 1 1 . . . . . . . 2 . . . . . . 3 . 1 12 11 Weapon 18 | . . . . . . . . . . . 1 . . . . . . 3 2 1 6 5 Highest Loss Streak 14 | . . 1 2 . . . . . . . 3 . . 1 . . 1 8 1 1 14 7 To Critical Strikes 1 | . . . . . . . . . . . . . . . . . . . . . 1 . Average Backups 13 | 2 9 16 16 10 11 1 2 3 4 4 4 4 5 11 18 20 21 20 20 21 19 12 Power 1 | . . 1 . . . . . . . . . . . 2 3 3 3 2 2 2 2 3 Propulsion 3 | . 1 3 3 3 4 . . 3 4 3 3 1 . 1 3 3 4 3 5 6 5 2 Utility 4 | . 1 3 5 3 4 1 1 . . . . 1 3 5 7 7 7 7 7 6 4 2 Weapon 3 | . 4 7 5 2 1 . . . . 1 1 . 1 2 3 6 6 5 3 3 4 2 Tool/Special . | . . . . . . . . . . . . . . . . . . . . . . . Unused Backups 47 | . 1 . 7 10 . 8 . . . 2 . . 1 2 10 . . . 4 . . 2 Power 5 | . . . . . . 1 . . . . . . . . 3 . . . . . . 1 Propulsion 10 | . . . 1 2 . 1 . . . 2 . . 1 . 1 . . . 2 . . . Utility 10 | . . . 1 . . 4 . . . . . . . . 3 . . . 1 . . 1 Weapon 20 | . 1 . 5 8 . 1 . . . . . . . 1 3 . . . 1 . . . Tool/Special 2 | . . . . . . 1 . . . . . . . 1 . . . . . . . . Average Slot Usage (%) 84 | . 99 96 99 80 59 47 61 65 69 63 59 80 87 87 89 92 93 92 91 84 81 78 Engine 5 | . 14 14 14 6 . 3 5 11 11 11 10 . . . . . . . . . . . Core 1 | . . . . 6 6 5 3 . . . . . . . . . . . 3 . . . Reactor 3 | . . . . . . . . . . . . 5 5 5 6 11 10 9 6 9 8 4 Treads 12 | . 28 28 28 26 6 . . . . . . . . . . . . . 1 9 8 . Leg 6 | . . . . . . . . . . . . 12 21 22 22 20 22 20 17 . . 17 Flight 1 | . . . . . . 4 5 5 5 5 5 9 . . . . . . . . . . Device 14 | . 14 10 13 4 4 5 5 11 13 15 13 6 16 17 17 17 17 20 20 27 24 22 Storage 9 | . 14 14 14 11 6 . . . . . . 5 8 11 11 11 11 10 9 9 8 12 Processor 5 | . . . . . 7 11 11 11 11 11 12 19 13 11 11 11 11 10 10 9 8 . Protection 3 | . . . . 3 6 2 1 5 5 5 5 5 4 5 5 5 5 5 4 4 5 7 Energy Cannon 10 | . . . 15 17 . . . . . . . 9 11 11 11 10 11 12 6 14 12 9 Ballistic Gun 3 | . 27 28 3 1 13 11 10 5 5 1 1 . . . . . . 2 7 . . . Peak Build Rating 208 | 7 8 10 21 26 43 73 84 84 92 99 104 116 132 138 153 150 143 164 174 192 208 192 Average Rating 89 | 5 7 9 18 18 38 70 79 83 88 93 95 101 129 132 138 143 142 159 158 191 189 165 On Entrance 89 | . 7 8 10 21 26 43 73 81 84 92 99 100 109 128 136 143 143 142 159 174 192 98 Naked Turns . | . . . . . . . . . . . . . . . . . . . . . . . Heaviest Build 207 | 11 28 46 62 62 61 23 23 23 24 58 62 76 119 119 159 160 161 175 170 172 207 183 Greatest Support 180 | 40 40 40 40 40 10 24 24 24 24 24 24 75 90 100 95 90 90 100 160 180 180 140 Greatest Overweight (x) 6 | . . 1 1 5 6 . . . . 2 2 2 1 1 2 2 2 2 2 1 1 4 Average Overweight (x) . | . . . 1 1 5 . . . . . 1 1 . 1 1 1 1 1 . . . 1 Largest Inventory Capacity 25 | 8 15 20 20 20 20 5 5 5 5 5 5 5 20 20 25 25 25 25 25 25 25 25 Average Capacity 17 | 7 12 19 20 17 20 5 5 5 5 5 5 5 13 20 21 25 25 25 25 25 25 21 Most Carried 25 | 5 14 18 20 20 20 5 5 5 5 5 5 5 9 20 25 25 25 25 25 25 25 19 Average Carried 15 | 2 9 16 19 15 18 4 4 4 5 4 4 4 6 12 20 24 24 24 24 24 23 14 Final Capacity 25 | 8 15 20 20 20 20 5 5 5 5 5 5 5 20 20 25 25 25 25 25 25 25 9 Final Carried 25 | 3 14 17 20 18 19 5 5 5 5 5 5 5 7 19 25 25 24 25 25 25 14 8 Class Distribution -------------------- 37% | Mutant 23% | Golem 13% | Derelict-Mutant 11% | Scavenger-Golem 5% | Commander-Golem 5% | Hacker-Mutant Dominant Class ---------------- Mutant | -10/Materials Mutant | -10/Mines Mutant | -10/Subcaves Derelict-Mutant | -9/Scraptown Mutant | -6/Factory Mutant | -6/Waste Hacker-Mutant | -6/Factory Hacker-Mutant | -6/Lower Caves Hacker-Mutant | -6/Lower Caves Mutant | -6/Zion Mutant | -6/Deep Caves Golem | -5/Proximity Caves Golem | -5/Factory Golem | -5/Extension Commander-Golem | -5/Cetus Scavenger-Golem | -5/Archives Scavenger-Golem | -5/Hub_04(d) Scavenger-Golem | -4/Factory Scavenger-Golem | -4/Garrison Golem | -3/Research Golem | -3/Quarantine Golem | -3/Section 7 Resources | -11 -10 -10 -10 -9 -6 -6 -6 -6 -6 -6 -6 -5 -5 -5 -5 -5 -5 -4 -4 -3 -3 -3 ----------- Run | Yrd Mat Min Sub Scr Fac Was Fac Low Low Zio Dee Pro Fac Ext Cet Arc Hub Fac Gar Res Qua Sec Matter Collected 4986 | 304 227 173 227 356 . 111 91 75 23 97 428 218 40 295 80 99 86 171 900 161 223 601 Remotely . | . . . . . . . . . . . . . . . . . . . . . . . Salvage Created 14215 | 87 321 93 193 . . 208 . 52 88 . 305 666 497 1596 198 329 730 1063 1530 1285 1875 3099 Parts 652 | 10 19 7 8 . . . . 3 4 . 6 34 22 68 9 17 37 55 68 56 91 138 Haulers Intercepted 6 | . 1 . . . . . . . . . . . 1 . . . . . . 1 1 2 Recyclers Shooed . | . . . . . . . . . . . . . . . . . . . . . . . Parts Field Recycled . | . . . . . . . . . . . . . . . . . . . . . . . Retrieved Matter . | . . . . . . . . . . . . . . . . . . . . . . . Parts Self-Destructed 77 | . . . 17 . . . . 10 14 3 . 33 . . . . . . . . . . Prevented . | . . . . . . . . . . . . . . . . . . . . . . . Kills | -11 -10 -10 -10 -9 -6 -6 -6 -6 -6 -6 -6 -5 -5 -5 -5 -5 -5 -4 -4 -3 -3 -3 ------- Run | Yrd Mat Min Sub Scr Fac Was Fac Low Low Zio Dee Pro Fac Ext Cet Arc Hub Fac Gar Res Qua Sec Combat Hostiles Destroyed 198 | . 9 3 2 . . 1 . 1 3 . 16 14 7 21 1 1 9 17 24 14 23 32 Melee 1 | . . . . . . . . . . . . . . . . . . . . . 1 . Guns 38 | . 4 3 . . . 1 . 1 3 . . . . . . . . 8 18 . . . Cannons 126 | . . . 2 . . . . . . . . 14 7 21 1 1 9 9 6 13 21 22 AOE 25 | . 5 . . . . . . . . . 16 . . . . . . . . . . 4 Classes Destroyed 28 | 1 5 . 1 . . 1 . . 1 . 2 2 . 2 . 1 2 2 2 2 3 1 Worker 5 | . . . . . . . . . . . . . . . . . 2 . . . 3 . Builder 9 | . . . . . . . . . . . . . . 1 . . 1 . . 1 4 2 Tunneler 5 | 5 . . . . . . . . . . . . . . . . . . . . . . Hauler 6 | . 1 . . . . . . . . . . . 1 . . . . . . 1 1 2 Recycler 5 | . 1 1 . . . . . . . . . . . 1 . . . . . 1 . 1 Operator 7 | . . . . . . . . . . . . . . . . 6 . . . . . 1 Watcher 13 | . 1 . . . . . . . . . . . . 3 1 . 3 . . 1 3 1 Swarmer 24 | . 3 3 . . . . . . 2 . . 5 1 4 . . . 2 4 . . . Grunt 81 | . 6 . 1 . . . . 1 . . . 7 5 10 . . 4 3 14 8 12 10 Brawler 3 | . . . . . . . . . . . . . . . . . . . . . 1 2 Duelist 6 | . . . . . . . . . . . . 1 1 . . . . . . 1 . 3 Protector 1 | . . . . . . . . . . . . . . . . . . . 1 . . . Researcher 6 | . . . . . . . . . . . . . . . . . . . . . 4 2 Sentry 16 | . . . . . . . . . 1 . . . . 5 . 1 2 3 2 . . 2 Demolisher 1 | . . . . . . . . . . . . . . . . . . . 1 . . . Specialist 4 | . . . . . . . . . . . . . . . . . . 4 . . . . Hunter 12 | . . . . . . . . . . . . . . 1 . . 2 1 . 2 2 4 Programmer 20 | . . . . . . . . . . . . . . . . . . 3 2 . 7 8 Heavy 3 | . . . . . . . . . . . . . . . . . 1 1 . . . 1 Q-Series 1 | . . . . . . . . . . . . . . . . . . . . . . 1 Behemoth 3 | . . . . . . . . . . . . 1 . 1 . . . . . 1 . . Compactor 1 | . . . . . . 1 . . . . . . . . . . . . . . . . Cetus Guard 1 | . . . . . . . . . . . . . . . 1 . . . . . . . S7 Guard 1 | . . . . . . . . . . . . . . . . . . . . . . 1 Striker 1 | . . . . . . . . . . . . . . . . . . . . 1 . . Executioner 1 | . . . . . . . . . . . . . . . . . . . . 1 . . Alpha 7 1 | . . . . . . . . . . . . . . . . . . . . . 1 . Subdweller 2 | . . . 2 . . . . . . . . . . . . . . . . . . . Z-Light 6 | . . . . . . . . . . . 6 . . . . . . . . . . . Assembled 10 | . . . . . . . . . . . 10 . . . . . . . . . . . Thug 1 | . . . . . . . . . . . . . . . . 1 . . . . . . Butcher 2 | . . . . . . . . . . . . . . 2 . . . . . . . . Best Kill Streak 10 | 2 5 3 1 . . 1 . 1 3 . 10 5 4 5 1 4 4 5 3 5 8 9 Combat Bots Only 10 | . 5 3 1 . . 1 . 1 3 . 10 5 4 5 1 1 3 5 3 4 4 4 Max Kills in Single Turn 10 | 1 1 1 1 . . 1 . 1 1 . 10 1 1 2 1 1 2 1 2 2 8 2 Gunslinging 1 | . . . . . . . . . . . . . . . . . . . 1 . . . Exploded 10 | . 1 . . . . . . . . . 10 . . . . . . . . . . 2 Melee 1 | . . . . . . . . . . . . . . . . . . . . . 1 . Uniques/NPCs Destroyed 2 | . . . . . . . . . . . 1 . . . 1 . . . . . . . Z-Imprinter (-6/Deep Caves) A7 (-5/Cetus) Combat | -11 -10 -10 -10 -9 -6 -6 -6 -6 -6 -6 -6 -5 -5 -5 -5 -5 -5 -4 -4 -3 -3 -3 -------- Run | Yrd Mat Min Sub Scr Fac Was Fac Low Low Zio Dee Pro Fac Ext Cet Arc Hub Fac Gar Res Qua Sec Hostile Shots Fired 1591 | . 40 21 35 . 32 . 18 . 3 . 166 40 16 99 . 5 49 178 111 41 441 296 Missed 560 | . 13 4 14 . 12 . 12 . . . 65 17 5 27 . 1 6 67 33 25 147 112 Hits 1031 | . 27 17 21 . 20 . 6 . 3 . 101 23 11 72 . 4 43 111 78 16 294 184 Melee 58 | . . . . . . . . . . . 2 . . . . . . . . 1 22 33 Projectile 973 | . 27 17 21 . 20 . 6 . 3 . 99 23 11 72 . 4 43 111 78 15 272 151 AOE 5 | . . . . . . . . . . . . . . . . . . 2 3 . . . Critical Strikes 65 | . . . . . . . . . 1 . 1 . 1 4 . . 2 4 6 2 32 12 Part Disruptions 6 | . . . . . . . . . . . 1 . . . . . . 3 . . 1 1 Damage Taken 23187 | . 266 144 411 . 292 . 47 . 51 . 2527 502 179 1411 78 88 855 1780 1447 534 7630 4945 Core 2852 | . 36 33 65 . 46 . . . 5 . 272 91 48 98 . . 244 138 182 . 780 814 Absorbed by Shields 56 | . . . . . . . . . . . . . . 47 9 . . . . . . . Reduced by Siege Mode 72 | . . . . . . . . . . . . . . . . . . . . . 72 . Ignored by Resistances 3078 | . . . . . . . . . . . . . 33 293 18 18 169 377 302 101 942 825 Regen/Repaired (Parts) 394 | . . . . . . 153 12 . . . 27 . . . . . . . . . . 202 Core Remaining (%) 66 | 100 . . . 46 . . . . . . . 51 . . . . 61 . 72 . . . Volleys Fired 729 | 21 27 11 72 . . 6 3 15 6 3 32 30 15 76 18 30 30 45 66 39 75 109 Largest 3 | 2 2 2 2 . . 2 2 1 1 1 1 2 2 2 2 2 2 3 3 3 3 3 Hottest 160 | 40 50 40 160 . . 53 53 28 28 28 39 50 50 50 50 50 50 105 105 75 116 130 Shots Fired 1446 | 42 45 22 95 . . 12 6 16 6 3 32 60 30 152 36 51 60 121 178 111 157 211 Gun 383 | 42 36 22 65 . . 12 6 16 6 1 . . . . . 1 . 51 125 . . . Cannon 1001 | . . . 30 . . . . . . . . 60 30 152 36 50 60 69 52 111 154 197 Launcher 56 | . 9 . . . . . . . . . 32 . . . . . . . . . 1 14 Special 6 | . . . . . . . . . . 2 . . . . . . . 1 1 . 2 . Kinetic 340 | 42 36 22 8 . . 12 6 16 6 1 . . . . . 1 . 51 125 . 4 10 Thermal 1047 | . . . 87 . . . . . . 2 . 60 30 152 36 50 60 69 52 111 151 187 Explosive 41 | . 9 . . . . . . . . . 32 . . . . . . . . . . . Electromagnetic 14 | . . . . . . . . . . . . . . . . . . . . . . 14 Robot Hit Streak 44 | 6 9 5 10 . . 8 7 14 5 . . 24 39 44 11 8 10 11 11 13 23 12 Robot Miss Streak 5 | 4 3 2 2 . . 1 4 1 1 . . 5 . 4 1 2 2 3 5 3 2 4 Penetration Max 1 | . . . . . . . . . . . . . . . . . . 1 1 . . . Secondary Targets 7 | . . . . . . . . . . . . . . . . . . 5 2 . . . Max Gunslinging Chain 1 | . . . . . . . . . . . . . . . . . . 1 1 . . . Shots Hit Robots 823 | 23 26 13 23 . . 10 2 15 5 . 1 42 15 95 25 32 34 60 106 62 109 125 Core Hits 497 | 8 25 7 8 . . 1 . 3 3 . 57 18 8 35 10 14 22 32 45 36 68 97 Critical Kills 14 | . . 1 1 . . . . 1 . . . . . . . . . 3 8 . . . Critical Parts Destroyed 12 | . . . . . . . 1 . . . . . . . . . . 2 9 . . . Critical Strikes 28 | . . 1 1 . . . 1 1 . . 1 . . . . . . 6 17 . . . Meltdown 1 | . . . 1 . . . . . . . . . . . . . . . . . . . Destroy 26 | . . 1 . . . . 1 1 . . . . . . . . . 6 17 . . . Impale 1 | . . . . . . . . . . . 1 . . . . . . . . . . . Melee Attacks 11 | . . . . . . . . . . . 3 . . . . 1 . . . . 5 2 Kinetic 5 | . . . . . . . . . . . . . . . . . . . . . 5 . Impact . | . . . . . . . . . . . . . . . . . . . . . . . Slashing . | . . . . . . . . . . . . . . . . . . . . . . . Piercing 5 | . . . . . . . . . . . 3 . . . . . . . . . . 2 Sneak Attacks 1 | . . . . . . . . . . . . . . . . 1 . . . . . . Combat Hostiles . | . . . . . . . . . . . . . . . . . . . . . . . Follow-up Attacks . | . . . . . . . . . . . . . . . . . . . . . . . Damage Inflicted 46005 | 185 566 110 547 . . 184 47 299 105 . 2755 1895 740 4650 1214 1290 2196 2387 3682 2967 12657 7529 Guns 4498 | 185 205 106 97 . . 184 47 299 105 . . . . . . 27 . 872 2371 . . . Cannons 28166 | . . . 450 . . . . . . . . 1895 740 4650 1214 1263 1821 1490 1311 2967 4657 5708 Explosions 13058 | . 355 . . . . . . . . . 2686 . . . . . 375 . . . 7821 1821 Melee 248 | . . . . . . . . . . . 69 . . . . . . . . . 179 . Ramming 35 | . 6 4 . . . . . . . . . . . . . . . 25 . . . . Kinetic 4956 | 185 205 106 16 . . 184 47 299 105 . . . . . . 27 . 872 2371 . 310 229 Thermal 35935 | . . . 531 . . . . . . . . 1895 740 4650 1214 1263 1872 1490 1311 2967 12297 5705 Explosive 3041 | . 355 . . . . . . . . . 2686 . . . . . . . . . . . Electromagnetic 1969 | . . . . . . . . . . . . . . . . . 324 . . . 50 1595 Impact . | . . . . . . . . . . . . . . . . . . . . . . . Slashing . | . . . . . . . . . . . . . . . . . . . . . . . Piercing 69 | . . . . . . . . . . . 69 . . . . . . . . . . . Highest Corruption 49 | . . . . . 1 1 1 1 1 1 . . . . . 12 12 5 7 . 18 49 Average Corruption 10 | . . . . . 1 1 1 1 1 1 . . . . . 5 5 3 6 . 10 23 Corruption Purged 17 | . . . . . . . . . . . . . . . . 7 10 . . . . . Corruption Blocked . | . . . . . . . . . . . . . . . . . . . . . . . Effects 302 | . . . . . . 1 2 7 7 1 . . . . . 7 10 10 62 . 65 130 Message Errors 61 | . . . . . . 1 . 2 2 . . . . . . 2 3 2 16 . 12 21 Matter Fused 68 | . . . . . . . . 2 . 1 . . . . . 2 4 3 16 . 13 27 Heat Flow Errors 37 | . . . . . . . . 1 2 . . . . . . . 1 1 8 . 6 18 Energy Discharges 43 | . . . . . . . 1 . 1 . . . . . . 3 . 2 7 . 9 20 Parts Rejected 5 | . . . . . . . . . . . . . . . . . . . . . 3 2 Parts Fused 6 | . . . . . . . . . . . . . . . . . 1 . 1 . 2 2 Data Loss (minor) 30 | . . . . . . . 1 1 . . . . . . . . 1 1 2 . 6 18 Data Loss (major) 15 | . . . . . . . . . . . . . . . . . . 1 4 . 2 8 Misfires 12 | . . . . . . . . 1 1 . . . . . . . . . 3 . 6 1 Alerts 4 | . . . . . . . . . . . . . . . . . . . . . 3 1 Misdirections 5 | . . . . . . . . . . . . . . . . . . . . . 2 3 Weapon Failures 16 | . . . . . . . . . 1 . . . . . . . . . 5 . 1 9 Overload Shots . | . . . . . . . . . . . . . . . . . . . . . . . Overflow Damage 1268 | . . . . . . . . . . . 49 68 15 131 37 76 22 34 . 59 479 298 Projectiles 873 | . . . . . . . . . . . . 68 15 131 37 76 13 34 . 59 150 290 Explosions 395 | . . . . . . . . . . . 49 . . . . . 9 . . . 329 8 Melee . | . . . . . . . . . . . . . . . . . . . . . . . Knockbacks 2 | . . . . . . . . . . . . . . . . . . . . . . 2 Impact . | . . . . . . . . . . . . . . . . . . . . . . . Kinetic 2 | . . . . . . . . . . . . . . . . . . . . . . 2 Secondary . | . . . . . . . . . . . . . . . . . . . . . . . Self-Inflicted Damage 1243 | . . . . . . . . . . . . . . . . . 199 . . . 844 200 Shots 26 | . . . . . . . . . . . . . . . . . 3 . . . 3 20 Rammed 5 | . 4 1 . . . . . . . . . . . . . . . . . . . . Targets Rammed 6 | . 4 1 . . . . . . . . . . . . . . . 1 . . . . Kicked 1 | . . . . . . . . . . . . . . . . . . 1 . . . . Crushed . | . . . . . . . . . . . . . . . . . . . . . . . Highest Temperature 340 | . 19 . 75 . . 24 28 146 271 . 80 4 . . . . 232 194 247 . 340 257 Average Temperature 61 | . 8 . 26 . . 11 12 52 102 . 25 2 . . . . 140 117 112 . 136 70 Received Heat Transfer 3864 | . 93 6 123 . . . 18 . . . 386 84 117 328 . 9 81 39 234 85 1963 298 Siege Activations 4 | . . . . . . . . . . . . . . . . . . . . 1 3 . Total Turns 77 | . . . . . . . . . . . . . . . . . . . . 19 58 . Longest Duration 28 | . . . . . . . . . . . . . . . . . . . . 19 28 . Martial Activations . | . . . . . . . . . . . . . . . . . . . . . . . Shielding Activations . | . . . . . . . . . . . . . . . . . . . . . . . Robots Disrupted . | . . . . . . . . . . . . . . . . . . . . . . . Combat Hostiles . | . . . . . . . . . . . . . . . . . . . . . . . Robots Corrupted 6 | . . . . . . . . . . . . . . . . . . . . . . 6 Combat Hostiles 6 | . . . . . . . . . . . . . . . . . . . . . . 6 Parts Fried 14 | . . . . . . . . . . . . . . 1 . . 1 . . . . 12 Impact Corruptions . | . . . . . . . . . . . . . . . . . . . . . . . Robots Melted 2 | . . . 1 . . . . . . . . . . . . . . . . 1 . . Combat Hostiles 2 | . . . 1 . . . . . . . . . . . . . . . . 1 . . Parts Melted 19 | . . . 2 . . . . . . . . . . 4 . 1 1 2 . 3 2 4 Heat Transferred 16158 | . . . 840 . . . . . . . . 1050 400 2525 700 750 1000 850 725 1675 2393 3250 Parts Sabotaged 2 | . . . . . . . . . . . . . . . . . . . . . . 2 Parts Stolen . | . . . . . . . . . . . . . . . . . . . . . . . Parts Stripped 5 | . . . . . . . . . . . . . . . . . . . . . 5 . Power Chain Reactions 5 | . . . . . . . . . . . . . . . . . 2 . . . . 3 Alert | -11 -10 -10 -10 -9 -6 -6 -6 -6 -6 -6 -6 -5 -5 -5 -5 -5 -5 -4 -4 -3 -3 -3 ------- Run | Yrd Mat Min Sub Scr Fac Was Fac Low Low Zio Dee Pro Fac Ext Cet Arc Hub Fac Gar Res Qua Sec Maximum Alert Level 4 | . . . . . . . 2 . . . . . . 2 1 . 3 1 4 3 4 3 Low Security (%) 42 | 100 100 100 . . 100 100 78 . . . . . 100 93 21 100 96 10 . . . . Level 1 11 | . . . . . . . 11 . . . . . . 6 78 . 2 89 17 . . . Level 2 24 | . . . . . . . 9 . . . . . . . . . . . 15 . 80 78 Level 3 15 | . . . . . . . . . . . . . . . . . . . 28 100 13 20 Level 4 5 | . . . . . . . . . . . . . . . . . . . 38 . 5 . Level 5 . | . . . . . . . . . . . . . . . . . . . . . . . High Security . | . . . . . . . . . . . . . . . . . . . . . . . Max Security . | . . . . . . . . . . . . . . . . . . . . . . . Peak Influence 1449 | 5 146 76 . . . 25 465 . . . . . 132 453 324 165 741 392 1449 1022 1208 894 Initial 814 | . . 8 . . . . . . . . . . 76 . 253 56 . 362 274 814 558 609 Average 395 | 1 72 7 . . . 3 138 . . . . . 47 105 234 61 106 273 867 886 641 589 Influence Increases 10538 | 25 307 98 348 . . 45 579 400 420 . . 320 210 1177 305 218 1009 550 1295 764 1379 1089 Destroy 0b10 Robot/C 4940 | . 180 60 240 . . . 220 180 180 . . 280 140 540 160 80 200 340 600 320 540 680 Destroy 0b10 Robot/NC 325 | 25 15 5 . . . . 25 . . . . . 5 30 10 30 30 . 10 50 55 35 Destroy Leader 792 | . 54 10 20 . . . 74 20 30 . . 40 12 66 . . 66 80 30 76 78 136 Allied During Kill 1222 | . . 8 58 . . . 170 200 210 . . . . 267 115 26 17 4 99 48 . . Successful Hack 100 | . 9 . . . . . 4 . . . . . 14 10 . . 4 24 14 12 4 5 Disable Machine 870 | . . . . . . . 30 . . . . . 15 165 . 60 255 15 45 60 165 60 Anti-Garrison Action 500 | . . . . . . . . . . . . . . . . . . . 350 150 . . Destroy Structure 1564 | . 49 . . . . 45 56 . . . . . 24 54 20 22 422 72 132 48 492 128 Partial Spotted 15 | . . . . . . . . . . . . . . . . . 15 . . . . . Lose Combat Pursuer 210 | . . 15 30 . . . . . . . . . . 45 . . . 15 15 . 45 45 Influence Decreases 9736 | 25 284 121 263 85 . 45 114 467 326 492 . 198 332 724 618 358 268 899 238 1221 1286 1372 Entered New Map 3213 | . . 15 . 85 . . . 173 76 492 . . 46 . 200 84 . 379 118 635 434 476 Time Decay 5173 | 25 284 96 203 . . 45 114 254 230 . . 198 246 534 318 234 238 410 . 446 632 666 Lost Part 630 | . . 10 . . . . . . . . . . . 10 . . 10 90 40 20 220 230 Lost Ally 680 | . . . 60 . . . . 40 20 . . . . 180 100 40 20 20 80 120 . . Purge Threat 40 | . . . . . . . . . . . . . 40 . . . . . . . . . Squads Dispatched 57 | . 3 . . . 2 . 3 . . . . . 6 4 . . 4 9 . 4 9 13 Investigation 10 | . . . . . 1 . . . . . . . 4 3 . . . 1 . 1 . . Extermination 12 | . . . . . . . . . . . . . 1 . . . 1 2 . . 3 5 Reinforcement 22 | . 3 . . . 1 . 1 . . . . . 1 1 . . 3 3 . 3 3 3 Assault 7 | . . . . . . . . . . . . . . . . . . . . . 2 5 Garrison 6 | . . . . . . . 2 . . . . . . . . . . 3 . . 1 . Intercept . | . . . . . . . . . . . . . . . . . . . . . . . Searches Triggered . | . . . . . . . . . . . . . . . . . . . . . . . Construction Impeded 3 | . . . . . . . . . . . . . . 1 . . . 1 . 1 . . Haulers Reinforced 4 | . . . . . . . 1 . . . . . . . . . . . . 2 . 1 Active Scanning Responses . | . . . . . . . . . . . . . . . . . . . . . . . Cargo Convoy Interrupts . | . . . . . . . . . . . . . . . . . . . . . . . Stealth | -11 -10 -10 -10 -9 -6 -6 -6 -6 -6 -6 -6 -5 -5 -5 -5 -5 -5 -4 -4 -3 -3 -3 --------- Run | Yrd Mat Min Sub Scr Fac Was Fac Low Low Zio Dee Pro Fac Ext Cet Arc Hub Fac Gar Res Qua Sec Distress Signals 10 | . . . . . . . . . . . . . . . 2 . 1 1 . 6 . . Communications Jammed . | . . . . . . . . . . . . . . . . . . . . . . . Distress Signals . | . . . . . . . . . . . . . . . . . . . . . . . Times Spotted 395 | . 18 4 21 . 3 6 6 7 8 . 47 12 10 36 9 15 16 23 32 36 42 44 Peak Tracking Total 30 | . 3 3 6 . 3 3 2 6 3 . 30 4 4 8 5 1 4 6 6 6 6 7 Tactical Retreats 9 | . . 1 1 . . . . . . . . . . 1 . . . 1 1 . 2 2 Traps | -11 -10 -10 -10 -9 -6 -6 -6 -6 -6 -6 -6 -5 -5 -5 -5 -5 -5 -4 -4 -3 -3 -3 ------- Run | Yrd Mat Min Sub Scr Fac Was Fac Low Low Zio Dee Pro Fac Ext Cet Arc Hub Fac Gar Res Qua Sec Traps Triggered 21 | . 1 . 1 . 1 . 1 . . . . . 2 6 . . 3 2 3 . . 1 Indirectly . | . . . . . . . . . . . . . . . . . . . . . . . Trap Hack Attempts . | . . . . . . . . . . . . . . . . . . . . . . . Triggered . | . . . . . . . . . . . . . . . . . . . . . . . Disarmed . | . . . . . . . . . . . . . . . . . . . . . . . Reprogrammed . | . . . . . . . . . . . . . . . . . . . . . . . Reused . | . . . . . . . . . . . . . . . . . . . . . . . Traps Extracted . | . . . . . . . . . . . . . . . . . . . . . . . Installed 2 | . . . . 1 . . . 1 . . . . . . . . . . . . . . Triggered . | . . . . . . . . . . . . . . . . . . . . . . . Most Traps Carried 4 | . . . 1 4 3 3 2 2 1 1 . . . . . . . . . . . . Machines | -11 -10 -10 -10 -9 -6 -6 -6 -6 -6 -6 -6 -5 -5 -5 -5 -5 -5 -4 -4 -3 -3 -3 ---------- Run | Yrd Mat Min Sub Scr Fac Was Fac Low Low Zio Dee Pro Fac Ext Cet Arc Hub Fac Gar Res Qua Sec Machines Disabled 69 | . . . 2 . . . 2 . . . 3 . 1 12 . 4 17 1 5 6 12 4 Max in Single Turn 12 | . . . 1 . . . . . . . 1 . 1 1 . 1 12 . 2 2 3 1 Garrison Access 1 | . . . . . . . . . . . . . . . . . . . . 1 . . Phase Generator 1 | . . . . . . . . . . . . . . . . . . . 1 . . . Network Hub 2 | . . . . . . . . . . . . . . . . . 2 . . . . . Machines Repaired . | . . . . . . . . . . . . . . . . . . . . . . . Machines Dismantled 1 | . . . . . . . . . . . . . . . . . . . . . . 1 Machines Sabotaged . | . . . . . . . . . . . . . . . . . . . . . . . Overloaded Fab Kills . | . . . . . . . . . . . . . . . . . . . . . . . Hacking | -11 -10 -10 -10 -9 -6 -6 -6 -6 -6 -6 -6 -5 -5 -5 -5 -5 -5 -4 -4 -3 -3 -3 --------- Run | Yrd Mat Min Sub Scr Fac Was Fac Low Low Zio Dee Pro Fac Ext Cet Arc Hub Fac Gar Res Qua Sec Machines Accessed 49 | . 3 1 4 4 1 . 2 . . . . . 7 11 1 . 1 1 1 4 5 3 Terminals 31 | . 3 . . . 1 . 1 . . . . . 3 11 1 . 1 . 1 2 4 3 Fabricators 1 | . . . . . . . 1 . . . . . . . . . . . . . . . Repair Stations 1 | . . . . . . . . . . . . . . . . . . . . 1 . . Recycling Units 3 | . . . . . . . . . . . . . 3 . . . . . . . . . Scanalyzers 1 | . . . . . . . . . . . . . 1 . . . . . . . . . Garrison Access 3 | . . . . . . . . . . . . . . . . . . 1 . 1 1 . Total Hacks 99 | . 9 1 7 11 2 . 4 . . . . . 13 21 4 . 1 3 2 7 9 5 Successful 48 | . 4 1 7 11 . . 3 . . . . . 8 6 1 . 1 1 1 1 2 1 Failed 51 | . 5 . . . 2 . 1 . . . . . 5 15 3 . . 2 1 6 7 4 Catastrophic 14 | . . . . . 1 . . . . . . . . 3 1 . . . . 4 3 2 Database Lockouts . | . . . . . . . . . . . . . . . . . . . . . . . Manual 31 | . 9 . . . . . 2 . . 4 . . 6 7 . . . . . 1 2 . Terminals 61 | . 9 . . . 2 . 2 . . . . . 5 21 4 . 1 . 2 3 7 5 Fabricators 2 | . . . . . . . 2 . . . . . . . . . . . . . . . Repair Stations 1 | . . . . . . . . . . . . . . . . . . . . 1 . . Recycling Units 6 | . . . . . . . . . . . . . 6 . . . . . . . . . Scanalyzers 2 | . . . . . . . . . . . . . 2 . . . . . . . . . Garrison Access 8 | . . . . . . . . . . . . . . . . . . 3 . 3 2 . Terminal Hacks 34 | . . 1 7 11 . . . . . . . . 4 5 1 . 1 . 1 . 2 1 Record 14 | . . . 5 5 . . . . . . . . 1 . 1 . . . . . 2 . Robot Analysis 5 | . . . . 5 . . . . . . . . . . . . . . . . . . Prototype ID Bank 1 | . . . . . . . . . . . . . . 1 . . . . . . . . Open Door 5 | . . 1 1 . . . . . . . . . 1 1 . . . . . . . 1 Emergency Access Points 1 | . . . . . . . . . . . . . . . . . . . 1 . . . Alert Level 1 | . . . . . . . . . . . . . . 1 . . . . . . . . Unreport Threat 1 | . . . . . . . . . . . . . 1 . . . . . . . . . Locate Traps 2 | . . . . . . . . . . . . . . 1 . . 1 . . . . . Hauler Manifests 1 | . . . . . . . . . . . . . . 1 . . . . . . . . Zone Layout 1 | . . . . . . . . . . . . . 1 . . . . . . . . . Proto ID Catalog 2 | . . . 1 1 . . . . . . . . . . . . . . . . . . Fabricator Hacks 2 | . . . . . . . 2 . . . . . . . . . . . . . . . Network Status 1 | . . . . . . . 1 . . . . . . . . . . . . . . . Build 1 | . . . . . . . 1 . . . . . . . . . . . . . . . Repair Station Hacks 1 | . . . . . . . . . . . . . . . . . . . . 1 . . Scan Component 1 | . . . . . . . . . . . . . . . . . . . . 1 . . Recycling Unit Hacks . | . . . . . . . . . . . . . . . . . . . . . . . Scanalyzer 1 | . . . . . . . . . . . . . 1 . . . . . . . . . Insert Component 1 | . . . . . . . . . . . . . 1 . . . . . . . . . Garrison Access Hacks 1 | . . . . . . . . . . . . . . . . . . 1 . . . . Unlock Access 1 | . . . . . . . . . . . . . . . . . . 1 . . . . Unauthorized Hacks 9 | . 4 . . . . . 1 . . . . . 3 1 . . . . . . . . Terminals 6 | . 4 . . . . . 1 . . . . . . 1 . . . . . . . . Botnet 4 | . 2 . . . . . 1 . . . . . . 1 . . . . . . . . Skim 2 | . 2 . . . . . . . . . . . . . . . . . . . . . Fabricators . | . . . . . . . . . . . . . . . . . . . . . . . Repair Stations . | . . . . . . . . . . . . . . . . . . . . . . . Recycling Units 3 | . . . . . . . . . . . . . 3 . . . . . . . . . Fedlink 3 | . . . . . . . . . . . . . 3 . . . . . . . . . Scanalyzers . | . . . . . . . . . . . . . . . . . . . . . . . Garrison Access . | . . . . . . . . . . . . . . . . . . . . . . . Data Cores Recovered 2 | . . . . . . . 1 . . . . . . . . . . . . . . 1 Used . | . . . . . . . . . . . . . . . . . . . . . . . Hacking Detections 24 | . 2 . . . 1 . 1 . . . . . 3 7 1 . . 1 1 3 2 2 Full Trace Events 7 | . 1 . . . 1 . . . . . . . 1 3 . . . . . 1 . . Feedback Events 1 | . . . . . 1 . . . . . . . . . . . . . . . . . Corruption 1 | . . . . . 1 . . . . . . . . . . . . . . . . . Feedback Blocked . | . . . . . . . . . . . . . . . . . . . . . . . Robot Schematics Acquired 3 | . . . . . . . . . . 3 . . . . . . . . . . . . Robots Built . | . . . . . . . . . . . . . . . . . . . . . . . Authchips . | . . . . . . . . . . . . . . . . . . . . . . . Time . | . . . . . . . . . . . . . . . . . . . . . . . Total Robot Build Rating . | . . . . . . . . . . . . . . . . . . . . . . . Part Schematics Acquired 24 | . . . . . . . . . . 15 . . . . . . . . . . 6 3 Parts Built 2 | . . . . . . . 2 . . . . . . . . . . . . . . . Authchips . | . . . . . . . . . . . . . . . . . . . . . . . Time 117 | . . . . . . . 117 . . . . . . . . . . . . . . . Total Part Build Rating 14 | . . . . . . . 14 . . . . . . . . . . . . . . . Parts Repaired . | . . . . . . . . . . . . . . . . . . . . . . . Time . | . . . . . . . . . . . . . . . . . . . . . . . Parts Recycled . | . . . . . . . . . . . . . . . . . . . . . . . Recycled Matter . | . . . . . . . . . . . . . . . . . . . . . . . Retrieved Matter . | . . . . . . . . . . . . . . . . . . . . . . . Retrieved Components . | . . . . . . . . . . . . . . . . . . . . . . . Parts Scanalyzed . | . . . . . . . . . . . . . . . . . . . . . . . Part Schematics Acquired . | . . . . . . . . . . . . . . . . . . . . . . . Parts Damaged . | . . . . . . . . . . . . . . . . . . . . . . . Bothacking | -11 -10 -10 -10 -9 -6 -6 -6 -6 -6 -6 -6 -5 -5 -5 -5 -5 -5 -4 -4 -3 -3 -3 ------------ Run | Yrd Mat Min Sub Scr Fac Was Fac Low Low Zio Dee Pro Fac Ext Cet Arc Hub Fac Gar Res Qua Sec Used RIF Installer . | . . . . . . . . . . . . . . . . . . . . . . . Robots Hacked 4 | . . . . . . . . . . . . . . . . 1 . 1 1 . 1 . Non-combat 1 | . . . . . . . . . . . . . . . . 1 . . . . . . Combat 1 | . . . . . . . . . . . . . . . . . . . . . 1 . Robot Hacks Applied 3 | . . . . . . . . . . . . . . . . 1 . . . . 2 . parse_system 1 | . . . . . . . . . . . . . . . . . . . . . 1 . check_alert 1 | . . . . . . . . . . . . . . . . 1 . . . . . . find_scanalyzer 1 | . . . . . . . . . . . . . . . . . . . . . 1 . Manual 2 | . . . . . . . . . . . . . . . . . . 1 1 . . . Relay Couplers Released 1 | . . . . . . . . . . . . . . . . . . . . 1 . . Machine Destruction 1 | . . . . . . . . . . . . . . . . . . . . 1 . . Fabnet Peak Effective % . | . . . . . . . . . . . . . . . . . . . . . . . Robots Rewired 18 | . . . . . . . . 2 . . . . . 7 . . . . 9 . . . Allies Hacked 3 | . . . . . . . . 2 1 . . . . . . . . . . . . . Hacks Repelled . | . . . . . . . . . . . . . . . . . . . . . . . Allies | -11 -10 -10 -10 -9 -6 -6 -6 -6 -6 -6 -6 -5 -5 -5 -5 -5 -5 -4 -4 -3 -3 -3 -------- Run | Yrd Mat Min Sub Scr Fac Was Fac Low Low Zio Dee Pro Fac Ext Cet Arc Hub Fac Gar Res Qua Sec Total Allies 75 | . . 4 10 . . 19 . 2 4 . . . . 25 . . . 1 10 . . . Largest Group 19 | . . 4 7 3 3 19 17 14 15 15 15 . . 14 11 5 2 1 8 6 . . Highest-Rated Group 716 | . . 71 133 57 57 669 619 523 716 716 712 . . 491 491 154 68 116 269 228 . . Highest-Rated Ally 159 | . . 31 19 19 19 50 50 50 81 81 81 . . 159 159 39 39 116 116 56 . . Total Orders 2 | . . . . . . . . . . . . . . . . 2 . . . . . . STAY 1 | . . . . . . . . . . . . . . . . 1 . . . . . . FOLLOW 1 | . . . . . . . . . . . . . . . . 1 . . . . . . Ally Attacks 798 | . . 5 88 . 5 117 97 37 27 . 187 . . 77 51 17 10 3 46 31 . . Total Damage 19564 | . . 12 1481 . 104 4026 2413 1788 984 . 2809 . . 1499 1123 217 149 186 1993 780 . . Kills 118 | . . . 16 . 1 7 19 8 6 . 25 . . 8 8 3 1 . 8 8 . . Allies Corrupted . | . . . . . . . . . . . . . . . . . . . . . . . Allies Melted 1 | . . . . . . . . . . . . . . 1 . . . . . . . . Intel | -11 -10 -10 -10 -9 -6 -6 -6 -6 -6 -6 -6 -5 -5 -5 -5 -5 -5 -4 -4 -3 -3 -3 ------- Run | Yrd Mat Min Sub Scr Fac Was Fac Low Low Zio Dee Pro Fac Ext Cet Arc Hub Fac Gar Res Qua Sec Active Infowar (turns) 18788 | 16 748 1041 359 1 135 347 319 545 493 1016 1302 1493 723 2029 714 624 603 985 2138 1109 2048 . Optics 16559 | . . . . . 71 347 319 545 493 1016 1302 1493 723 2029 714 624 603 985 2138 1109 2048 . Sensors 3363 | . . . . 1 135 347 319 545 493 1016 507 . . . . . . . . . . . Terrain 3644 | . . . . . . . . . . . 253 . . . . . . . 1496 . 1895 . Structural 123 | . . 59 64 . . . . . . . . . . . . . . . . . . . Seismic 2041 | 16 748 982 295 . . . . . . . . . . . . . . . . . . . Cloaking 578 | . . . . . . . . . . . . . . . . . . . 279 298 1 . Robot Analysis Total 5 | . . . . 5 . . . . . . . . . . . . . . . . . . Derelict Logs Recovered 15 | . . 2 3 5 . . . 1 1 1 . 2 . . . . . . . . . . Drone Launches . | . . . . . . . . . . . . . . . . . . . . . . . Drone Recoveries . | . . . . . . . . . . . . . . . . . . . . . . . Exploration | -11 -10 -10 -10 -9 -6 -6 -6 -6 -6 -6 -6 -5 -5 -5 -5 -5 -5 -4 -4 -3 -3 -3 ------------- Run | Yrd Mat Min Sub Scr Fac Was Fac Low Low Zio Dee Pro Fac Ext Cet Arc Hub Fac Gar Res Qua Sec Turns Passed 32871 | 198 748 1396 5312 5839 165 347 319 545 493 1016 1302 1493 723 2029 714 624 603 985 2138 1109 2218 2555 Spaces Moved 15196 | 89 401 611 2003 2500 95 423 402 817 616 1251 830 453 277 719 290 187 229 309 643 565 868 618 Core 17 | 13 . . . . . . . . . . . 4 . . . . . . . . . . Treads 6580 | 76 401 611 2003 1988 . . . . . . . . . . . . . . 98 565 838 . Legs 3653 | . . . . . . . . . . . . 449 277 719 290 187 229 309 545 . 30 618 Wheels 607 | . . . . 512 95 . . . . . . . . . . . . . . . . . Hover . | . . . . . . . . . . . . . . . . . . . . . . . Flight 4339 | . . . . . . 423 402 817 616 1251 830 . . . . . . . . . . . Fastest Speed 40 | 50 160 160 240 155 155 40 40 40 40 40 40 150 135 183 185 185 185 180 160 160 160 115 Average Speed 163 | 143 160 217 249 218 167 40 40 40 40 63 111 180 174 184 185 185 185 194 190 161 191 182 Slowest Speed 270 | 160 160 240 260 260 170 40 40 40 40 120 120 183 185 186 226 226 226 242 240 240 245 270 Overloaded Moves . | . . . . . . . . . . . . . . . . . . . . . . . Propulsion Burnouts . | . . . . . . . . . . . . . . . . . . . . . . . Robots Hopped 7 | . . . . . . . 2 3 . 1 1 . . . . . . . . . . . Potential Cave-ins 35 | . . . . . . . . . . . . . . . . . . . . . 35 . Cave-ins Triggered . | . . . . . . . . . . . . . . . . . . . . . . . Teleports 1 | . . . . . . . . . . . . . . . . . . . . . 1 . Exploration Rate (%) 61 | 5 84 85 96 88 4 96 18 90 74 87 88 71 12 77 72 88 38 13 79 26 84 43 Regions Visited 22 Branch Regions 14 Pre-discovered Areas 11 | . . . 5 3 . . . . 1 . . 1 1 . . . . . . . . . Known Exits Taken 5 | . . . . . . . 1 . . 1 . 1 1 . . . . 1 . . . . Unknown Exits Taken 14 | 1 1 1 1 1 . . . 1 1 . 1 . . 1 1 1 1 . . 1 1 . Scrap Searched 34 | . . 2 9 6 . . . 9 2 3 . 3 . . . . . . . . . . Spaces Dug 67 | . . . 1 . . . . . . . . 2 9 1 2 3 1 21 2 3 10 12 Terrain Destroyed 4893 | . 69 . 1 . . . 1 . . . 59 16 12 28 7 11 346 46 94 23 4112 68 Melee . | . . . . . . . . . . . . . . . . . . . . . . . Projectile 257 | . . . 1 . . . 1 . . . . 16 12 28 7 11 10 46 21 23 35 46 AOE 4636 | . 69 . . . . . . . . . 59 . . . . . 336 . 73 . 4077 22 Terrain Rammed . | . . . . . . . . . . . . . . . . . . . . . . . Walls Destroyed . | . . . . . . . . . . . . . . . . . . . . . . . Machines Disabled . | . . . . . . . . . . . . . . . . . . . . . . . Actions | -11 -10 -10 -10 -9 -6 -6 -6 -6 -6 -6 -6 -5 -5 -5 -5 -5 -5 -4 -4 -3 -3 -3 --------- Run | Yrd Mat Min Sub Scr Fac Was Fac Low Low Zio Dee Pro Fac Ext Cet Arc Hub Fac Gar Res Qua Sec Total 21985 | 124 467 658 2229 2877 102 592 553 1017 855 1467 1163 1071 489 1272 437 417 348 596 1424 675 1299 1853 Wait 5138 | . 4 30 89 332 . 146 109 160 233 192 272 577 180 327 84 181 82 217 521 61 290 1051 Move 15162 | 88 400 610 2002 2499 95 422 397 811 615 1248 827 452 276 718 289 186 228 309 641 564 867 618 Hop 6 | . . . . . . . 2 2 . 1 1 . . . . . . . . . . . Pick Up 179 | 8 14 4 18 21 4 7 3 2 . 5 2 1 4 16 18 . . 9 17 1 10 15 Fast Attach 55 | 2 . . 4 . . 1 4 . 1 4 11 3 3 . 4 4 4 . 3 2 4 1 Attach 101 | 5 1 1 4 8 3 2 2 1 . 2 3 2 2 2 3 3 1 6 8 . 20 22 Detach 26 | . . . 1 1 . 2 . . . 1 1 1 1 1 . 4 . . 5 1 4 3 Swap 62 | . 11 1 12 1 . . 1 . . . . . . 2 1 2 . 5 16 1 4 5 Drop 210 | . 6 . 27 14 . 6 7 1 . 11 11 5 8 12 20 6 3 4 26 6 20 17 Fire 729 | 21 27 11 72 . . 6 3 15 6 3 32 30 15 76 18 30 30 45 66 39 75 109 Melee 11 | . . . . . . . . . . . 3 . . . . 1 . . . . 5 2 Ram . | . . . . . . . . . . . . . . . . . . . . . . . Kick 1 | . . . . . . . . . . . . . . . . . . 1 . . . . Crush 5 | . 4 1 . . . . . . . . . . . . . . . . . . . . Escape Stasis 60 | . . . . . . . 25 . . . . . . 25 . . . . 10 . . . Rewire 228 | . . . . . . . . 24 . . . . . 93 . . . . 111 . . . Trap 2 | . . . . 1 . . . 1 . . . . . . . . . . . . . . Miscellaneous 10 | . . . . . . . . . . . . . . . . . . . . . . 10 Route ------- -11/Scrapyard -10/Materials (discovered 3 exits: [*Mat x2] / *Min) -10/Mines (discovered 3 exits: [*Mat x2] / *Sub) -10/Subcaves (discovered 4 exits: [*Mat x2] / [*Rec] / *Scr) -9/Scraptown (discovered 2 exits: *Fac x2) -6/Factory (discovered 2 exits: Fac / Low) -6/Waste -6/Factory -6/Lower Caves -6/Lower Caves (discovered 2 exits: *Fac / *Zio) -6/Zion (discovered 2 exits: *Dee / [*Pro]) -6/Deep Caves -5/Proximity Caves -5/Factory (discovered 2 exits: Upp / *Ext) -5/Extension (discovered 2 exits: *Fac / *Cet) -5/Cetus (discovered 2 exits: *Fac / [*Arc]) -5/Archives (discovered 3 exits: *Fac / *Hub x2) -5/Hub_04(d) (discovered 3 exits: *Fac x3) -4/Factory -4/Garrison (discovered 3 exits: *Res x3) -3/Research (discovered 2 exits: [*Res] / *Qua) -3/Quarantine (discovered 3 exits: [*Res] / *Sec / [*Frg]) -3/Section 7 History --------- Turn | Location | Event 43 | -11/Scrapyard | Discovered new exit (range 16) 199 | -11/Scrapyard | Entered Materials 325 | -10/Materials | Build established: Mutant 542 | -10/Materials | Discovered new exit (range 16) 790 | -10/Materials | Discovered new exit (range 7) 866 | -10/Materials | Discovered new exit (range 15) 947 | -10/Materials | Entered Mines 949 | -10/Mines | Assisted by bots powering up and referring to "LRC-V3" 1010 | -10/Mines | Received a Rocket Launcher from a helpful Derelict 1010 | -10/Mines | Discovered new exit (range 7) 1108 | -10/Mines | Received a Mining Laser from a helpful Derelict 1156 | -10/Mines | Discovered new exit (range 7) 1187 | -10/Mines | Learned Materials trap positions 1201 | -10/Mines | Learned 8 Materials zone layouts 1217 | -10/Mines | Found a damaged Exp. Sensor Array with a note attached 1222 | -10/Mines | Found Prototype Device 1580 | -10/Mines | Met a Derelict who couldn't figure out how to use a Trap Extractor 1986 | -10/Mines | Discovered new exit (range 7) 2343 | -10/Mines | Entered Subcaves 2343 | -10/Subcaves | Accompanied by 2 allies 2344 | -10/Subcaves | Approached by a straggling Scientist 2352 | -10/Subcaves | Learned location of Zion (-6) 2352 | -10/Subcaves | Met a Zionite searching for "candidates" 2670 | -10/Subcaves | Discovered new exit (range 12) 2745 | -10/Subcaves | Shifting Twisted Machinery released Mak. Light Armor Plating 2800 | -10/Subcaves | Visited triangular shrine 2815 | -10/Subcaves | Found Prototype Device 2815 | -10/Subcaves | Identified V3-11A's Pendant 2820 | -10/Subcaves | Befriended Subdweller 2915 | -10/Subcaves | Befriended Subdweller 3020 | -10/Subcaves | Scientist uncovered a shortcut to Scraptown 3295 | -10/Subcaves | Befriended Subdweller 3535 | -10/Subcaves | Befriended Subdweller 3535 | -10/Subcaves | Befriended Subdweller 3598 | -10/Subcaves | Disturbed a concealed Subdweller 3600 | -10/Subcaves | Befriended Subdweller 3738 | -10/Subcaves | Learned location of Mines (-9) 3835 | -10/Subcaves | Befriended Subdweller 3885 | -10/Subcaves | Befriended Subdweller 4156 | -10/Subcaves | Shifting Twisted Machinery released Sub. Beam Cannon 4507 | -10/Subcaves | A swath of the cavern ceiling suddenly collapsed 4758 | -10/Subcaves | Visited 4L-MR0's lab 4784 | -10/Subcaves | Found Flightbrick 4843 | -10/Subcaves | Shifting Twisted Machinery released Sub. Monowheel 4986 | -10/Subcaves | Shifting Twisted Machinery released Battle Cannon 5840 | -10/Subcaves | Befriended Subdweller 6008 | -10/Subcaves | Disturbed a concealed Subdweller 6040 | -10/Subcaves | Disturbed a concealed Subdweller 6045 | -10/Subcaves | Befriended Subdweller 6201 | -10/Subcaves | Core integrity fell below 50% 6215 | -10/Subcaves | Discovered new exit (range 15) 6470 | -10/Subcaves | A swath of the cavern ceiling suddenly collapsed 6586 | -10/Subcaves | Visited Clippyterm 6594 | -10/Subcaves | Learned location of Deep Caves (-6) 6617 | -10/Subcaves | Shifting Twisted Machinery released Spk. Treads 6620 | -10/Subcaves | Shifting Twisted Machinery released Flamer 6709 | -10/Subcaves | Discovered new exit (range 11) 7115 | -10/Subcaves | Build established: Derelict-Mutant 7655 | -10/Subcaves | Entered Scraptown 7655 | -9/Scraptown | Accompanied by 3 allies 7944 | -9/Scraptown | Visited Cyclists 7962 | -9/Scraptown | Visited Shadow of the Wyrm 7999 | -9/Scraptown | Visited The Evicted 8326 | -9/Scraptown | Delivered V3-11A's Pendant to T0-NE2 in exchange for information 8831 | -9/Scraptown | Visited UFD Registry 8831 | -9/Scraptown | Registered with UFD as "Longcase" 8867 | -9/Scraptown | Visited Awakened 8924 | -9/Scraptown | Visited Cave Peace 8955 | -9/Scraptown | Visited Fellowship of the Rings 9026 | -9/Scraptown | Discovered new exit (range 11) 9166 | -9/Scraptown | Scanned Subdweller tech in exchange for log data 9171 | -9/Scraptown | Learned Factory terminal intel 9174 | -9/Scraptown | Learned location of Armory (-4) 9176 | -9/Scraptown | Learned location of 2 exits from Factory 9179 | -9/Scraptown | Learned location of Warlord (-4) 9182 | -9/Scraptown | Learned location of Testing (-2) 9384 | -9/Scraptown | Visited Science Guys 9468 | -9/Scraptown | Visited LU-1G1's Boring Crew 9504 | -9/Scraptown | Visited Curators Association 9572 | -9/Scraptown | Visited Scrapoid Pod Storage 9618 | -9/Scraptown | Visited Analyses Database 9663 | -9/Scraptown | Visited Abandonware Association 9696 | -9/Scraptown | Learned abandonware demo "OVRCLOCK.EXE" 9704 | -9/Scraptown | Learned abandonware demo "REPAIR.EXE" 9767 | -9/Scraptown | Visited Junk Repository 9845 | -9/Scraptown | Visited Scrapoid Research Area 9938 | -9/Scraptown | Visited Scrap Suit Storage 11336 | -9/Scraptown | Identified Exp. Sensor Array 11627 | -9/Scraptown | Build established: Mutant 11769 | -9/Scraptown | Warned about trapping Scraptown 12904 | -9/Scraptown | Visited CPS Storage 13404 | -9/Scraptown | Met Optimus 13404 | -9/Scraptown | Accepted into 0bPrime 13487 | -9/Scraptown | Discovered new exit (range 5) 13494 | -9/Scraptown | Entered Factory 13494 | -6/Factory | Accompanied by 3 allies 13494 | -6/Factory | Evolved 8 slots: Power x1, Propulsion x2, Utility x5 13495 | -6/Factory | Identified exit to Factory 13495 | -6/Factory | Identified exit to Lower Caves 13496 | -6/Factory | Loaded intel: 26 terminal locations 13659 | -6/Factory | Sucked down chute 13659 | -6/Factory | Entered Waste 13660 | -6/Waste | Met a frightened Derelict 13662 | -6/Waste | Attached Flightbrick, gained temporary slots: Utility x3 13679 | -6/Waste | Spotted C-40 Crusher 13683 | -6/Waste | Spotted C-40 Crusher 13684 | -6/Waste | Spotted C-40 Crusher 13685 | -6/Waste | Spotted C-40 Crusher 13692 | -6/Waste | Warlord forces began an assault 13703 | -6/Waste | Allies destroyed C-40 Crusher 13708 | -6/Waste | Allies destroyed C-40 Crusher 13708 | -6/Waste | Allies destroyed C-40 Crusher 13723 | -6/Waste | Spotted C-40 Crusher 13725 | -6/Waste | Allies destroyed C-40 Crusher 13730 | -6/Waste | Destroyed C-40 Crusher 13741 | -6/Waste | Spotted C-40 Crusher 13749 | -6/Waste | Allies destroyed C-40 Crusher 13752 | -6/Waste | Discovered new exit (range 22) 13773 | -6/Waste | Found Broken Imp. Powered Armor 14006 | -6/Waste | Entered Factory 14006 | -6/Factory | Accompanied by 17 allies 14134 | -6/Factory | Fabricated Hardcell Cannon? 14135 | -6/Factory | Garrison activated, responded to threat 14242 | -6/Factory | Discovered exit to Lower Caves (range 22) 14281 | -6/Factory | Found Prototype Processor 14281 | -6/Factory | Identified Exp. Targeting Computer 14304 | -6/Factory | Lost 3 allies 14311 | -6/Factory | Build established: Hacker-Mutant 14325 | -6/Factory | Entered Lower Caves 14325 | -6/Lower Caves | Accompanied by 12 allies 14341 | -6/Lower Caves | Learned 12 Factory zone layouts 14390 | -6/Lower Caves | Attracted the attention of an 0b10 outpost 14503 | -6/Lower Caves | Spotted B-75 Beast 14531 | -6/Lower Caves | Allies destroyed B-75 Beast 14684 | -6/Lower Caves | Encountered a Warlord checkpoint 14759 | -6/Lower Caves | Discovered new exit (range 11) 14870 | -6/Lower Caves | Entered another Lower Caves area 14870 | -6/Lower Caves | Accompanied by 12 allies 14875 | -6/Lower Caves | Discovered exit to Factory (range 8) 15088 | -6/Lower Caves | Prototype Device suddenly appears! 15090 | -6/Lower Caves | Found Prototype Device 15090 | -6/Lower Caves | Identified Amulet of Y3-NDR 15139 | -6/Lower Caves | Attracted the attention of an 0b10 checkpoint 15190 | -6/Lower Caves | Encountered a Warlord checkpoint 15201 | -6/Lower Caves | Joined by bewildered Wizard 15202 | -6/Lower Caves | Joined by bewildered Wizard 15222 | -6/Lower Caves | Discovered new exit (range 8) 15313 | -6/Lower Caves | Joined by bewildered Wizard 15317 | -6/Lower Caves | Joined by bewildered Wizard 15363 | -6/Lower Caves | Entered Zion 15363 | -6/Zion | Accompanied by 15 allies 15385 | -6/Zion | Discovered new exit (range 20) 15447 | -6/Zion | System corruption cleaned by Quarantine Array 15493 | -6/Zion | Found CR-A16's Pointy Stick 15529 | -6/Zion | Turned away by Imprinter 15546 | -6/Zion | Identified exit to Deep Caves 15563 | -6/Zion | Found Prototype Launcher 15563 | -6/Zion | Identified Gui. Missile Launcher 15580 | -6/Zion | Acquired unknown access codes intercepted by a Zionite 15730 | -6/Zion | Found Prototype Device 15730 | -6/Zion | Identified Bomb Factory No. 2 16012 | -6/Zion | Opened final containment barrier to the Deep Caves 16019 | -6/Zion | Build established: Mutant 16032 | -6/Zion | Saw the warning signs outside the Deep Caves entrance 16379 | -6/Zion | Entered Deep Caves 16379 | -6/Deep Caves | Accompanied by 15 allies 16650 | -6/Deep Caves | Z-Facility disabled 16794 | -6/Deep Caves | Attacked by Z-Imprinter 16810 | -6/Deep Caves | Allies destroyed Z-Imprinter 16835 | -6/Deep Caves | Lost 3 allies 17111 | -6/Deep Caves | Found Prototype Protection 17111 | -6/Deep Caves | Identified Zio. Weapon Casing 17376 | -6/Deep Caves | Found Surveybot 24 Scanner 17379 | -6/Deep Caves | Found Surveybot 24 Chip 17432 | -6/Deep Caves | Discovered new exit (range 13) 17542 | -6/Deep Caves | Spotted AG-62519 17576 | -6/Deep Caves | Allies destroyed AG-62519 17600 | -6/Deep Caves | Spotted AG-39936 17616 | -6/Deep Caves | Exposed GOLEM chamber 17617 | -6/Deep Caves | Triggered Deep Caves wall 17622 | -6/Deep Caves | Spotted AS-77156 17629 | -6/Deep Caves | Spotted AS-11100 17639 | -6/Deep Caves | Destroyed 10 combat bots 17650 | -6/Deep Caves | Found GOLEM Unit 17655 | -6/Deep Caves | Found GOLEM Unit 17662 | -6/Deep Caves | Lost 3 parts (1p1u1w) 17681 | -6/Deep Caves | Entered Proximity Caves 17691 | -5/Proximity Caves | Lost 9 allies 17819 | -5/Proximity Caves | Received a Behemoth hack from an annoying Tinkerer 18121 | -5/Proximity Caves | Build established: Golem 18272 | -5/Proximity Caves | Learned location of 1 exit from Factory 18871 | -5/Proximity Caves | Spotted B-75 Beast 18887 | -5/Proximity Caves | Destroyed B-75 Beast 19083 | -5/Proximity Caves | Discovered exit to Factory (range 14) 19174 | -5/Proximity Caves | Entered Factory 19174 | -5/Factory | Evolved 2 slots: Utility x2 19175 | -5/Factory | Identified exit to Upper Caves 19176 | -5/Factory | Identified exit to Extension 19668 | -5/Factory | Loaded intel: 8 recycling unit locations 19700 | -5/Factory | Learned location of Protoforge (-3) 19897 | -5/Factory | Entered Extension 20010 | -5/Extension | Rescued a captive Derelict 20011 | -5/Extension | Rescued a captive Derelict 20537 | -5/Extension | Spotted B-75 Beast 20589 | -5/Extension | Rescued a captive Derelict 20590 | -5/Extension | Rescued a captive Derelict 20664 | -5/Extension | Destroyed B-75 Beast 20856 | -5/Extension | Rescued a captive Derelict 20858 | -5/Extension | Rescued a captive Derelict 20921 | -5/Extension | Rescued a captive Derelict 20939 | -5/Extension | Rescued a captive Derelict 20940 | -5/Extension | Rescued a captive Derelict 20944 | -5/Extension | Rescued a captive Derelict 20945 | -5/Extension | Rescued a captive Derelict 21178 | -5/Extension | Spotted B-75 Beast 21208 | -5/Extension | Allies destroyed B-75 Beast 21281 | -5/Extension | Rescued a captive Derelict 21284 | -5/Extension | Rescued a captive Derelict 21677 | -5/Extension | Rescued a captive Derelict 21698 | -5/Extension | Rescued a captive Derelict 21736 | -5/Extension | Rescued a captive Derelict 21737 | -5/Extension | Rescued a captive Derelict 21762 | -5/Extension | Lost 3 allies 21814 | -5/Extension | Build established: Commander-Golem 21825 | -5/Extension | Rescued A7 21848 | -5/Extension | Lost 3 allies 21887 | -5/Extension | Discovered new exit (range 10) 21889 | -5/Extension | Discovered new exit (range 6) 21926 | -5/Extension | Entered Cetus 21926 | -5/Cetus | Accompanied by 11 allies (A7) 21931 | -5/Cetus | Acquired a Cetus Manufacturing Module code from A7 21992 | -5/Cetus | Spotted Cetus Guard 21993 | -5/Cetus | Spotted Cetus Guard 21994 | -5/Cetus | Spotted Cetus Guard 22001 | -5/Cetus | Allies destroyed Cetus Guard 22001 | -5/Cetus | Spotted Cetus Guard 22010 | -5/Cetus | Allies destroyed Cetus Guard 22010 | -5/Cetus | Allies destroyed Cetus Guard 22013 | -5/Cetus | Allies destroyed Cetus Guard 22043 | -5/Cetus | Lost 4 allies 22122 | -5/Cetus | Discovered new exit (range 22) 22173 | -5/Cetus | Spotted Cetus Guard 22174 | -5/Cetus | Spotted Cetus Guard 22176 | -5/Cetus | Spotted Cetus Guard 22179 | -5/Cetus | Spotted Cetus Guard 22184 | -5/Cetus | Allies destroyed Cetus Guard 22188 | -5/Cetus | Allies destroyed Cetus Guard 22189 | -5/Cetus | Destroyed Cetus Guard 22198 | -5/Cetus | Allies destroyed Cetus Guard 22200 | -5/Cetus | Discovered new exit (range 22) 22220 | -5/Cetus | Met Revision 17 22609 | -5/Cetus | Murdered A7 22612 | -5/Cetus | Extracted ID and sensor layout for unrecognized location from A7's data core 22640 | -5/Cetus | Entered Archives 22640 | -5/Archives | Accompanied by 5 allies 22676 | -5/Archives | Discovered new exit (range 22) 22698 | -5/Archives | Discovered new exit (range 21) 22711 | -5/Archives | Build established: Scavenger-Golem 22716 | -5/Archives | Lost 3 allies 22764 | -5/Archives | Discovered new exit (range 19) 23161 | -5/Archives | System corruption reached 10% 23264 | -5/Archives | Entered Hub_04(d) 23264 | -5/Hub_04(d) | Accompanied by 2 allies 23351 | -5/Hub_04(d) | Discovered new exit (range 21) 23555 | -5/Hub_04(d) | Discovered new exit (range 8) 23755 | -5/Hub_04(d) | Discovered new exit (range 14) 23846 | -5/Hub_04(d) | Network Hub disabled 23863 | -5/Hub_04(d) | Network Hub disabled 23867 | -5/Hub_04(d) | Entered Factory 23867 | -4/Factory | Evolved 2 slots: Utility x1, Weapon x1 24644 | -4/Factory | Garrison activated, responded to threat 24662 | -4/Factory | Spotted B-86 Titan 24710 | -4/Factory | Befriended a Behemoth using the annoying Tinkerer's hack 24736 | -4/Factory | Lost 8 parts (1p1n3u3w) 24852 | -4/Factory | Identified exit to Garrison 24852 | -4/Factory | Entered Garrison 25221 | -4/Garrison | Phase Generator disabled 25332 | -4/Garrison | Triggered checkpoint 25496 | -4/Garrison | Spotted B-86 Titan 25499 | -4/Garrison | Befriended a Behemoth using the annoying Tinkerer's hack 25506 | -4/Garrison | Triggered checkpoint 25642 | -4/Garrison | Discovered new exit (range 24) 26052 | -4/Garrison | Discovered new exit (range 23) 26072 | -4/Garrison | Triggered checkpoint 26073 | -4/Garrison | Triggered checkpoint 26418 | -4/Garrison | Triggered checkpoint 26497 | -4/Garrison | Discovered new exit (range 23) 26552 | -4/Garrison | Build established: Commander-Golem 26595 | -4/Garrison | Spotted B-86 Titan 26609 | -4/Garrison | Allies destroyed B-86 Titan 26809 | -4/Garrison | Attempted to access garrison exit controls, blocked by remote lockdown 26990 | -4/Garrison | Entered Research 26990 | -3/Research | Accompanied by 6 allies 26990 | -3/Research | Evolved 2 slots: Utility x2 27190 | -3/Research | Revision forces began assault on 0b10 27276 | -3/Research | Met up with Revision 17++ 27358 | -3/Research | Spotted B-86 Titan 27361 | -3/Research | Lost 7 allies 27391 | -3/Research | Destroyed B-86 Titan 27602 | -3/Research | Build established: Golem 27616 | -3/Research | Discovered new exit (range 22) 27690 | -3/Research | Research terminal network offline 27850 | -3/Research | Discovered new exit (range 7) 27964 | -3/Research | Spotted Executioner 27965 | -3/Research | Destroyed Executioner 27973 | -3/Research | Spotted Striker 28000 | -3/Research | Destroyed Striker 28034 | -3/Research | Found Gamma Bomb Array 28099 | -3/Research | Entered Quarantine 28324 | -3/Quarantine | Garrison activated, responded to threat 28506 | -3/Quarantine | Found Alien Reactor 28507 | -3/Quarantine | Identified Matter Drive 28632 | -3/Quarantine | Discovered new exit (range 22) 28711 | -3/Quarantine | Scanned by Researcher 28792 | -3/Quarantine | Found Alien Impact Weapon 28991 | -3/Quarantine | Found Alien Artifact 28991 | -3/Quarantine | Identified Phase Armor 29094 | -3/Quarantine | System corruption reached 10% 29278 | -3/Quarantine | Build established: Tank 29349 | -3/Quarantine | First assault squad dispatched 29404 | -3/Quarantine | Found Alien Artifact 29404 | -3/Quarantine | Identified Hpw. Transdimensional Reconstructor 29404 | -3/Quarantine | Warped through subspace 29475 | -3/Quarantine | Spotted Alpha 7 29516 | -3/Quarantine | Destroyed Alpha 7 29560 | -3/Quarantine | Found Alien Launcher 29805 | -3/Quarantine | Found Alien Artifact 29837 | -3/Quarantine | Identified Core Stripper 29885 | -3/Quarantine | Lost 4 parts (2u2w) 30002 | -3/Quarantine | Identified Sigix Terminator 30014 | -3/Quarantine | Identified Subatomic Replicator 30014 | -3/Quarantine | Used Subatomic Replicator to create Alien Launcher 30017 | -3/Quarantine | Identified Supercharged Sigix Terminator 30125 | -3/Quarantine | Fired Supercharged Sigix Terminator 30126 | -3/Quarantine | Spotted Fortress 30207 | -3/Quarantine | Core integrity fell below 50% 30287 | -3/Quarantine | Lost 14 parts (1p3n7u3w) 30309 | -3/Quarantine | Discovered new exit (range 5) 30309 | -3/Quarantine | Discovered new exit (range 6) 30317 | -3/Quarantine | Entered Section 7 30415 | -3/Section 7 | Build established: Mutant 30817 | -3/Section 7 | Build established: Golem 30923 | -3/Section 7 | Spotted B-86 Titan 31004 | -3/Section 7 | Spotted S7 Guard 31516 | -3/Section 7 | Spotted S7 Guard 31524 | -3/Section 7 | Core integrity fell below 20% 31563 | -3/Section 7 | Destroyed S7 Guard 31570 | -3/Section 7 | Found Prototype Protection 31571 | -3/Section 7 | Identified Hvy. Regenerative Plating 31817 | -3/Section 7 | First assault squad dispatched 31926 | -3/Section 7 | Found Alien Artifact 31927 | -3/Section 7 | Identified Core Physics Calibrator 32019 | -3/Section 7 | Spotted Alpha 7 32099 | -3/Section 7 | Found Alien Artifact 32100 | -3/Section 7 | Identified Integrity Redistributor 32100 | -3/Section 7 | Used Integrity Redistributor, redistributed integrity to core (+294) 32410 | -3/Section 7 | Lost 7 parts (1p2n2u2w) 32479 | -3/Section 7 | Lost 3 parts (3u) 32484 | -3/Section 7 | System corruption reached 30% 32559 | -3/Section 7 | Spotted Executioner 32634 | -3/Section 7 | Spotted B-99 Colossus 32777 | -3/Section 7 | Lost 4 parts (1p2u1w) 32794 | -3/Section 7 | Found Alien Artifact 32795 | -3/Section 7 | Identified LRC Matter Compressor 32795 | -3/Section 7 | Installed LRC Matter Compressor, increased matter storage capacity (+125) 32802 | -3/Section 7 | Found Alien Artifact 32805 | -3/Section 7 | Found Alien Artifact 32806 | -3/Section 7 | Identified LRC Storage (x2) 32806 | -3/Section 7 | Installed LRC Storage, increased inventory capacity (+2) 32807 | -3/Section 7 | Installed LRC Storage, increased inventory capacity (+2) 32862 | -3/Section 7 | Found Alien Artifact 32865 | -3/Section 7 | Found Alien Artifact 32865 | -3/Section 7 | Identified Core Reset Matrix (x2) 32865 | -3/Section 7 | Used Core Reset Matrix 32869 | -3/Section 7 | Detected hypermatrix surge 32869 | -3/Section 7 | Sensed 15 artifacts in vicinity 32872 | -3/Section 7 | Destroyed by Q381-c with Plasma Lance Last Messages --------------- 32855_ Biometal Leg destroyed. 32860_ Q381-c follow-up attacks with Prototype Piercing Weapon. 32862_ Acquired Alien Artifact. 32863_ System corrupted: Matter fused (-8). 32864_ Q381-c follow-up attacks with Prototype Piercing Weapon. 32865_ Acquired Alien Artifact. 32865_ Identified Core Reset Matrix. 32865_ Wiping memory... 32866_ CORE RESET [Achievement: Alien Roots] 32866_ Wiping memory... 32867_ CORE RESET 32867_ Q381-c follow-up attacks with Prototype Piercing Weapon. 32867_ Critical hit (Impale). 32867_ Imp. Plasma Cutter destroyed. 32869_ Detected hypermatrix surge. 32869_ Sensed 15 artifacts in vicinity. 32872_ Q381-c follow-up attacks with Prototype Piercing Weapon. 32872_ Critical hit (Impale). [Achievement: Torch] Map ----- +----------------------------------------------------+ | ?????????????????????????????????????????????????? | | ?????????????????????????????????????????????????? | | ?????????????????????????????????????????????????? | | ?????????????????????????????????????????????????? | | ?????????????????????????????????????????????????? | | ?????????????????????????????????????????????????? | | ?????????????????????????????????????????????????? | | ?????????????????????????????????????????????????? | | ?????????????????????????????????????????????????? | | ?????????????????????????????????????????????????? | | ?????????????????????????????????????????????????? | | ?????????????????????????????????????????????????? | | ?????????????????????????????????????????????????? | | ?????????????????????????????????????????????????? | | ?????????????????????????????????????????????????? | | ?????????????????????????????????????????????????? | | ?????????????????????????????????????????????????? | | ?????????????????????????????????????????????????? | | ?????????????????????????????????????????????????? | | ?????????????????????????????????????????????????? | | ?????????????????????????????????????????????????? | | ?????????????????????????????????????????????????? | | ?????????????????????????????????????????????????? | | ???????????????????????#####?????????????????????? | | ????????????????????####! # ####???????????????? | | ????????????????????#" ""@Q" """"???????????????? | | ????????????????????#" """???????????????? | | ????????????????????#" """#??????????????? | | ????????????????????#"""""! """#??????????????? | | ????????????????????#""""" """???????????????? | | ????????????????????#""""" """???????????????? | | ????????????????????#""""" """???????????????? | | ??????????????????????? """"???????????????? | | ?????????????????????????? """???????????????? | | ?????????????????????????? """????????????????? | | ??????????????????????????## ##?????????????????? | | ???????????????????????????? #??????????????????? | | ???????????????????????????? #??????????????????? | | ???????????????????????????? #??????????????????? | | ????????????????????????????? ???????????????????? | | ?????????????????????????????????????????????????? | | ?????????????????????????????????????????????????? | | ?????????????????????????????????????????????????? | | ?????????????????????????????????????????????????? | | ?????????????????????????????????????????????????? | | ?????????????????????????????????????????????????? | | ?????????????????????????????????????????????????? | | ?????????????????????????????????????????????????? | | ?????????????????????????????????????????????????? | | ?????????????????????????????????????????????????? | +----------------------------------------------------+ Best States ------------- Heat Dissipation 91 Energy Generation 45 Energy Capacity 2440 Matter Stores 300 Matter Capacity 425 Sight Range 22 Robot Scan Range 20 Terrain Scan Range 24 Terrain Scan Density 2010 Cloak Strength 4 Additional Mass Support 20 EM Shielding 4 Armor Coverage 1100 Resistance: KI 15 Resistance: TH 15 Resistance: EX 15 Resistance: EM 15 Resistance: I 15 Resistance: S 15 Resistance: P 15 Phase Shifting 8 Evasion (%) 62 Targeting Accuracy 8 Core Analysis 8 Recoil Reduction 4 Offensive Hacking 10 Defensive Hacking 22 Item Schematics ----------------- None Robot Schematics ------------------ None Fabricated ------------ Hardcell Cannon | x2 | -6/Factory | Preloaded Repaired ---------- Nothing Alien Tech Used ----------------- Matter Drive Phase Armor High-powered Transdimensional Reconstructor Core Stripper Sigix Terminator Subatomic Replicator Supercharged Sigix Terminator Core Physics Calibrator Integrity Redistributor LRC Matter Compressor LRC Storage Core Reset Matrix Achievements -------------- Alien Roots Hard Hitter Sniper Sunderer Torch Challenges ------------ None Game ------ Seed CombatMicrowarpRipper Manual? 0 Play Time 04:02:27 Cumulative 165.9 hours Start 2025.09.02 @ 09:51:09 End 2025.09.03 @ 16:39:24 Sessions 9 Manual Loads 0 Difficulty Rogue Special Mode None Game No. 226 Rogue 226 Adventurer 0 Explorer 0 Win Type - Total 1 Types 1/0/0/0/0/0/0/0/0/0 Lore% 72 Gallery% 68 Achievement% 59 Wizard Run 0 Options --------- Layout 0 ASCII 0 Keyboard 0 Movement Mouse Keybinds 0 Fullscreen 1 Font 16/SmallcapsGlow Map View 75x55 Zoom Use 0% Tactical HUD 1 Map Filters NONE Filters NONE Steam 1 RUN: 61d4468e-9d0a-46bf-9700-49ffda193f4c